bitfinex/quotes_ETHUSD_20250318
["timestamp","ask_amount","ask_price","bid_price","bid_amount"]
[1742264756774,5.3873639,1913.0,1912.7,11.5620057]
[1742264756971,3.0,1913.1,1912.9,5.22766]
[1742264757172,3.8051,1913.3,1913.1,5.22706]
[1742264757402,3.8051,1913.3,1912.9,5.22766]
[1742264757403,3.8051,1913.3,1913.0,5.22733]
[1742264758818,3.8051,1913.3,1912.9,5.22763]
[1742264758987,9.0318,1913.3,1912.9,10.45513]
[1742264759317,9.0318,1913.3,1912.9,6.353473]
[1742264759474,9.0318,1913.3,1912.9,11.581013]
[1742264760023,9.0318,1913.3,1913.0,5.22736]
[1742264761517,3.8051,1913.3,1913.0,5.22736]
[1742264761826,3.8051,1913.3,1913.0,10.45465]
[1742264761976,3.8051,1913.3,1913.0,11.6127123]
[1742264763114,3.8051,1913.3,1913.0,6.3853523]
[1742264763323,3.8051,1913.3,1913.0,5.22729]
[1742264763621,3.8051,1913.3,1913.0,10.45452]
[1742264763991,3.0,1913.3,1913.0,5.22723]
[1742264764397,3.0,1913.3,1913.0,10.4545]
[1742264764596,3.0,1913.3,1913.0,5.22723]
[1742264765713,8.22658,1913.3,1913.0,5.22723]
[1742264766294,8.22658,1913.3,1912.9,10.45516]
[1742264766805,0.801,1913.2,1912.9,5.22753]
[1742264767008,10.6596439,1913.2,1912.7,11.5621457]
[1742264767185,5.22724,1913.1,1912.7,10.45625]
[1742264767829,5.22739,1913.0,1912.7,5.22806]
[1742264767998,0.801,1912.9,1912.7,5.22806]
[1742264768799,9.8597239,1912.8,1912.5,5.22852]
[1742264769148,9.8597239,1912.8,1912.5,5.22862]
[1742264769149,4.6317639,1912.8,1912.5,5.22862]
[1742264769432,0.801,1912.9,1912.7,5.22818]
[1742264770690,0.801,1912.9,1912.6,10.45672]
[1742264770887,9.6547639,1913.0,1912.7,5.22803]
[1742264771091,9.6547639,1913.0,1912.7,10.4561]
[1742264771291,9.6547639,1913.0,1912.7,5.22803]
[1742264771482,14.8821539,1913.0,1912.7,5.22803]
[1742264772001,9.6547639,1913.0,1912.7,5.22803]
[1742264772218,7.07763818,1913.1,1912.8,5.22789]
[1742264772418,4.85046818,1913.1,1912.8,10.45568]
[1742264772718,4.85046818,1913.1,1912.9,5.22758]
[1742264773039,3.0,1913.1,1912.9,5.22753]
[1742264773210,3.0,1913.1,1913.0,5.22739]
[1742264773596,3.0,1913.2,1913.0,10.45467]
[1742264773892,5.4072639,1913.3,1913.0,5.22728]
[1742264774401,10.6338539,1913.3,1913.0,5.22728]
[1742264775293,5.4072639,1913.3,1913.1,5.22703]
[1742264776313,5.4072639,1913.3,1913.1,5.22697]
[1742264776512,4.6317639,1913.3,1913.2,5.22684]
[1742264776715,3.0,1913.3,1913.2,5.22684]
[1742264777247,6.07233905,1913.4,1913.2,5.22684]
[1742264777947,5.023,1913.4,1913.1,5.22695]
[1742264778126,8.023,1913.4,1913.2,5.22662]
[1742264779448,8.023,1913.4,1913.2,10.45333]
[1742264780272,8.4038639,1913.5,1913.2,10.45331]
[1742264780774,8.4038639,1913.5,1913.2,5.22662]
[1742264781335,13.6298939,1913.5,1913.2,5.22662]
[1742264782268,8.4038639,1913.5,1913.2,5.22662]
[1742264782629,8.4038639,1913.5,1913.1,6.500275]
[1742264782630,13.6300339,1913.5,1913.1,6.500185]
[1742264782834,13.6300339,1913.5,1913.1,5.22699]
[1742264783052,5.22631,1913.4,1913.0,10.45461]
[1742264783465,5.22631,1913.4,1913.1,5.2271]
[1742264784775,13.6298939,1913.5,1913.2,5.22682]
[1742264786977,13.6298939,1913.5,1913.1,5.22699]
[1742264787268,15.5998435,1913.5,1913.1,5.22699]
[1742264787775,5.22632,1913.4,1913.0,5.22734]
[1742264787975,0.767,1913.2,1912.9,5.22757]
[1742264788347,9.8590239,1913.1,1912.7,5.22811]
[1742264788670,0.98590239,1913.0,1912.7,5.2281]
[1742264788870,15.0862439,1913.1,1912.7,5.2281]
[1742264789071,9.8589739,1913.1,1912.7,5.228]
[1742264789243,4.6317639,1913.1,1912.8,5.22783]
[1742264789449,8.99387,1913.2,1912.9,5.22763]
[1742264789953,5.99384,1913.2,1912.9,5.22753]
[1742264790654,5.99384,1913.2,1912.8,10.4557]
[1742264790853,5.99384,1913.2,1912.8,5.2278]
[1742264791053,4.6317639,1913.1,1912.8,5.2278]
[1742264791265,9.8589939,1913.1,1912.7,10.45626]
[1742264792374,9.8589939,1913.1,1912.8,5.2279]
[1742264792995,4.6317639,1913.1,1912.8,5.2279]
[1742264793171,0.767,1913.2,1912.9,5.22754]
[1742264793374,0.767,1913.2,1912.9,5.22752]
[1742264794097,0.767,1913.2,1912.9,10.45507]
[1742264794797,0.767,1913.2,1912.9,5.22752]
[1742264795399,0.767,1913.2,1912.9,10.45509]
[1742264795695,0.767,1913.2,1912.9,5.22752]
[1742264796894,0.767,1913.2,1912.9,5.22758]
[1742264797901,3.767,1913.2,1912.9,5.22758]
[1742264798263,3.767,1913.2,1913.0,5.22731]
[1742264798467,3.7524,1913.4,1913.1,10.45393]
[1742264798688,3.7524,1913.4,1913.1,5.22693]
[1742264798872,3.7524,1913.4,1913.2,5.22674]
[1742264799062,0.7524,1913.4,1913.2,5.22673]
[1742264799270,0.7524,1913.4,1913.2,5.9771951]
[1742264799465,0.825,1913.5,1913.2,11.2039551]
[1742264799665,0.825,1913.5,1913.2,5.9771951]
[1742264799900,3.825,1913.5,1913.2,5.9771951]
[1742264800203,3.825,1913.5,1913.2,5.9771451]
[1742264800777,3.825,1913.5,1913.3,5.22654]
[1742264800988,3.0,1913.5,1913.3,5.22654]
[1742264801812,0.781,1913.7,1913.5,5.22601]
[1742264802100,3.781,1913.7,1913.4,5.22603]
[1742264802301,3.781,1913.7,1913.4,10.45216]
[1742264802904,3.781,1913.7,1913.5,5.22587]
[1742264803206,22.7057639,1913.8,1913.5,5.22587]
[1742264803502,27.9310839,1913.8,1913.3,6.42585851]
[1742264803669,5.4153639,1913.6,1913.3,5.22642]
[1742264805006,5.4153639,1913.6,1913.3,5.2264]
[1742264806410,5.4153639,1913.6,1913.3,10.45282]
[1742264810713,5.4153639,1913.6,1913.4,5.22624]
[1742264811427,5.4153639,1913.6,1913.3,5.2264]
[1742264814174,1.84769939,1913.6,1913.0,0.7966]
[1742264814514,5.22611,1913.5,1913.1,5.22703]
[1742264814719,5.22524,1913.8,1913.0,0.7966]
[1742264814720,0.7795,1913.8,1913.2,0.7966]
[1742264814898,12.8572439,1913.7,1913.3,5.22635]
[1742264815104,12.8572439,1913.7,1913.3,5.22632]
[1742264815295,19.44656829,1913.7,1913.3,5.22632]
[1742264815982,14.22091829,1913.7,1913.3,10.4528]
[1742264816502,12.8572439,1913.7,1913.3,10.4528]
[1742264817121,13.90919732,1913.7,1913.3,10.4528]
[1742264818648,5.22578,1913.6,1913.3,5.22632]
[1742264819406,19.13489732,1913.7,1913.3,5.22632]
[1742264820047,13.90919732,1913.7,1913.3,10.45268]
[1742264820447,19.13484732,1913.7,1913.3,5.22632]
[1742264820606,21.12628205,1913.7,1913.3,5.22632]
[1742264821449,21.12628205,1913.7,1913.3,10.45274]
[1742264821750,15.90063205,1913.7,1913.4,5.22629]
[1742264822511,15.90063205,1913.7,1913.3,5.22632]
[1742264823245,5.22577,1913.6,1913.3,5.22632]
[1742264823626,9.8578839,1913.5,1913.2,5.22684]
[1742264824214,4.6317639,1913.3,1913.0,11.83756215]
[1742264824707,0.8163,1913.4,1913.1,5.227]
[1742264824919,6.04261,1913.4,1913.1,5.227]
[1742264826442,11.26907,1913.4,1913.0,5.98653]
[1742264826654,5.22686,1913.2,1912.8,5.22767]
[1742264826861,5.22686,1913.2,1912.9,5.22766]
[1742264828540,9.8583639,1913.3,1912.9,5.22758]
[1742264828749,9.8583639,1913.3,1913.0,5.22735]
[1742264828950,10.8831668,1913.3,1913.0,5.22735]
[1742264829248,16.1098968,1913.3,1912.9,5.22742]
[1742264829631,5.22685,1913.2,1912.9,5.22742]
[1742264829953,10.4539,1913.2,1912.8,5.22789]
[1742264830261,0.754,1913.1,1912.8,10.4557]
[1742264831028,0.754,1913.1,1912.9,5.22766]
[1742264832560,0.754,1913.1,1912.8,10.45563]
[1742264833353,0.754,1913.1,1912.9,5.22765]
[1742264833553,5.22685,1913.2,1912.9,5.22765]
[1742264834122,10.45384,1913.2,1912.9,5.22765]
[1742264834755,5.22685,1913.2,1912.9,5.22765]
[1742264835378,5.22716,1913.1,1912.8,5.22781]
[1742264835951,15.0862439,1913.1,1912.7,5.99639]
[1742264836158,4.6317639,1913.1,1912.8,5.2279]
[1742264836450,4.6317639,1913.1,1912.8,10.45566]
[1742264836854,4.6317639,1913.1,1912.8,10.4556]
[1742264837355,4.6317639,1913.1,1912.8,10.45554]
[1742264837650,4.6317639,1913.1,1912.8,5.22776]
[1742264837853,4.6317639,1913.1,1912.8,10.4556]
[1742264838014,9.8589239,1913.1,1912.8,10.45558]
[1742264838219,4.6317639,1913.1,1912.8,5.22776]
[1742264838419,4.6317639,1913.1,1912.8,10.4556]
[1742264838621,7.0730129,1913.3,1912.9,5.22742]
[1742264838816,6.22184729,1913.4,1912.8,0.7578]
[1742264839130,9.8581639,1913.4,1913.0,5.22718]
[1742264839332,9.8581639,1913.4,1913.1,5.22703]
[1742264839638,4.6317639,1913.4,1913.2,5.2267]
[1742264840763,8.67325482,1913.5,1913.2,6.0135]
[1742264841157,13.89930482,1913.5,1913.2,6.0135]
[1742264841664,8.67325482,1913.5,1913.2,6.0135]
[1742264843263,7.6317639,1913.5,1913.3,5.2264]
[1742264843573,5.3894639,1913.7,1913.2,0.7868]
[1742264843733,4.6317639,1913.7,1913.5,5.22586]
[1742264843929,7.6317639,1913.7,1913.5,5.22586]
[1742264844547,7.6317639,1913.7,1913.5,10.45168]
[1742264844873,3.0,1913.8,1913.6,5.22565]
[1742264845167,5.4468639,1913.9,1913.7,5.22547]
[1742264845363,18.07,1914.1,1913.7,5.22547]
[1742264845364,23.4606639,1914.1,1913.8,5.22504]
[1742264845568,23.4606639,1914.1,1913.8,10.45004]
[1742264845866,23.4606639,1914.1,1913.9,5.22491]
[1742264846161,22.7017639,1914.1,1913.9,5.22491]
[1742264846359,4.6317639,1914.1,1913.9,5.22478]
[1742264846565,3.0,1914.1,1913.9,5.22478]
[1742264846741,3.0,1914.1,1913.9,10.44958]
[1742264846936,3.0,1914.1,1913.9,5.22478]
[1742264848667,5.3906639,1914.2,1913.9,5.22478]
[1742264848973,8.3906639,1914.2,1913.9,5.22478]
[1742264850367,3.0,1914.2,1914.0,5.22456]
[1742264851173,3.0,1914.3,1914.1,5.22421]
[1742264851348,7.6317639,1914.3,1914.1,5.22421]
[1742264851543,7.6317639,1914.3,1914.1,10.44843]
[1742264851737,1.04445095,1914.5,1914.1,0.7673]
[1742264851938,5.4192639,1914.6,1914.2,5.22407]
[1742264852171,4.6317639,1914.4,1914.2,5.22407]
[1742264852473,4.6317639,1914.4,1914.2,6.34564]
[1742264852839,4.6317639,1914.4,1914.2,11.56962]
[1742264853037,4.6317639,1914.4,1914.2,6.34555]
[1742264853271,1.04256566,1914.6,1914.4,5.22345]
[1742264853974,4.6317639,1914.7,1914.4,5.22345]
[1742264854141,4.6317639,1914.7,1914.5,5.22329]
[1742264854485,4.6317639,1914.7,1914.4,5.22347]
[1742264855177,4.6317639,1914.7,1914.4,10.44691]
[1742264855401,4.6317639,1914.7,1914.4,1.121421]
[1742264855572,4.6317639,1914.7,1914.6,5.22302]
[1742264856394,4.6317639,1914.7,1914.5,10.44616]
[1742264856557,3.0,1914.8,1914.5,10.44616]
[1742264857398,3.0,1914.8,1914.6,5.22301]
[1742264857990,3.0,1914.8,1914.5,5.22303]
[1742264859495,3.0,1914.8,1914.5,10.44618]
[1742264860199,3.0,1914.8,1914.7,5.22275]
[1742264860498,6.4439193,1914.9,1914.5,6.267858]
[1742264860700,4.6317639,1914.7,1914.5,5.22324]
[1742264861059,4.6317639,1914.7,1914.4,10.44695]
[1742264861695,4.6317639,1914.7,1914.5,5.22328]
[1742264861991,11.6662893,1914.9,1914.5,5.22328]
[1742264862194,11.6662893,1914.9,1914.5,5.22321]
[1742264863801,13.65511523,1914.9,1914.4,5.22352]
[1742264863967,13.65511523,1914.9,1914.5,5.22326]
[1742264864484,18.87747523,1914.9,1914.5,5.22326]
[1742264864886,13.65510523,1914.9,1914.5,5.22326]
[1742264865090,11.6662793,1914.9,1914.5,10.44644]
[1742264865293,6.4439193,1914.9,1914.6,5.22297]
[1742264866068,11.6661393,1914.9,1914.6,5.22297]
[1742264867071,24.2523131,1915.3,1914.7,0.7797]
[1742264867072,18.068,1915.3,1914.7,0.7797]
[1742264867399,0.7937,1915.6,1915.1,0.55]
[1742264867612,0.7937,1916.3,1915.6,0.7797]
[1742264867905,4.6317639,1916.2,1916.1,5.21893]
[1742264868097,4.6317639,1916.2,1916.0,5.21909]
[1742264868289,4.6317639,1916.2,1916.0,5.21918]
[1742264868493,10.91490929,1916.2,1915.8,5.21975]
[1742264868690,0.7937,1916.3,1916.1,5.21892]
[1742264868891,6.02,1916.4,1916.1,5.21892]
[1742264868892,10.6517639,1916.4,1916.1,5.21892]
[1742264869111,10.6517639,1916.4,1916.1,5.2188]
[1742264869269,3.0,1916.3,1916.2,5.21861]
[1742264869599,10.6517639,1916.4,1916.1,10.43761]
[1742264869806,10.6517639,1916.4,1916.2,5.21865]
[1742264869964,10.6517639,1916.4,1916.1,5.2188]
[1742264870163,10.6517639,1916.4,1915.9,5.21938]
[1742264870164,3.0,1916.3,1915.9,5.21938]
[1742264870365,4.6317639,1916.2,1915.9,5.21938]
[1742264870794,4.6317639,1916.2,1915.9,10.43872]
[1742264871007,4.6317639,1916.2,1915.9,5.21934]
[1742264871307,3.0,1916.3,1916.1,5.21893]
[1742264871480,3.0,1916.3,1916.1,5.21875]
[1742264871671,10.6098339,1916.8,1916.2,0.8297]
[1742264871874,4.6317639,1916.4,1916.1,5.21883]
[1742264872072,7.6317639,1916.4,1916.2,5.21865]
[1742264872304,7.6317639,1916.4,1916.1,5.21883]
[1742264872513,7.6317639,1916.4,1916.1,10.43764]
[1742264872712,7.6317639,1916.4,1916.1,5.21881]
[1742264876011,9.8505139,1916.2,1915.8,5.21965]
[1742264876184,4.6317639,1915.9,1915.6,10.23013]
[1742264876374,4.6317639,1915.9,1915.6,5.22013]
[1742264876577,4.6317639,1915.9,1915.7,5.21993]
[1742264877485,4.6317639,1915.9,1915.6,10.44028]
[1742264877884,4.6317639,1915.9,1915.7,5.21999]
[1742264878087,0.7684,1916.0,1915.8,5.21975]
[1742264878806,3.0,1916.2,1916.0,5.2191]
[1742264879510,3.0,1916.2,1916.0,10.43818]
[1742264879710,3.0,1916.2,1916.0,10.43814]
[1742264879900,3.0,1916.2,1916.0,5.21906]
[1742264880211,4.6317639,1916.3,1916.0,5.21906]
[1742264880677,9.8502339,1916.3,1915.9,5.21935]
[1742264880975,4.6317639,1916.1,1915.9,5.21935]
[1742264882009,4.6317639,1916.1,1915.7,5.7708]
[1742264882010,0.7829,1916.0,1915.7,5.21999]
[1742264882195,0.7829,1916.0,1915.7,5.21988]
[1742264882395,4.6317639,1916.1,1915.8,5.21962]
[1742264882579,9.8507039,1916.1,1915.7,10.43974]
[1742264882915,15.0698839,1916.1,1915.7,5.21986]
[1742264883218,5.21921,1916.0,1915.7,5.21986]
[1742264884013,3.0,1916.0,1915.8,5.21968]
[1742264884202,3.0,1916.0,1915.8,4.96968]
[1742264884404,3.0,1916.0,1915.7,5.21977]
[1742264885481,4.6317639,1915.9,1915.6,10.44044]
[1742264885782,4.6317639,1915.9,1915.6,5.22018]
[1742264886073,4.6317639,1915.9,1915.8,5.21975]
[1742264886281,3.0,1916.0,1915.8,5.21964]
[1742264886493,3.0,1916.0,1915.9,5.21947]
[1742264886909,2.60711281,1916.1,1915.9,5.21947]
[1742264887312,3.0,1916.1,1915.9,5.21936]
[1742264887479,3.0,1916.1,1916.0,5.21909]
[1742264888112,4.6317639,1916.2,1916.0,5.21909]
[1742264888314,4.6317639,1916.2,1915.8,5.21972]
[1742264888529,4.6317639,1916.0,1915.8,5.21972]
[1742264888822,4.6317639,1916.0,1915.7,10.43988]
[1742264889038,4.6317639,1916.0,1915.7,10.43981]
[1742264889185,4.6317639,1916.0,1915.7,10.43976]
[1742264889380,4.6317639,1916.0,1915.8,5.21974]
[1742264889594,4.6317639,1916.0,1915.8,5.21962]
[1742264889799,4.6317639,1916.0,1915.9,5.21947]
[1742264891085,3.0,1916.1,1915.9,5.21947]
[1742264891313,4.6317639,1916.1,1915.9,5.21934]
[1742264891508,3.7829,1916.3,1916.0,5.2192]
[1742264891821,4.6317639,1916.2,1916.0,5.21908]
[1742264891991,3.0,1916.4,1916.2,5.21866]
[1742264892195,3.0,1916.4,1916.2,10.43711]
[1742264892703,3.0,1916.4,1916.2,5.21845]
[1742264892914,4.6317639,1916.3,1916.0,6.04156]
[1742264893117,4.6317639,1916.3,1916.1,5.21881]
[1742264894933,4.6317639,1916.3,1916.0,10.43823]
[1742264895232,0.7626,1916.6,1916.5,5.21784]
[1742264895433,3.0,1916.5,1916.3,5.21825]
[1742264895623,3.0,1916.7,1916.4,5.21811]
[1742264895927,8.5297309,1916.7,1916.4,5.21811]
[1742264896116,9.55948421,1916.7,1916.5,5.21775]
[1742264896432,9.55948421,1916.7,1916.5,10.43549]
[1742264896657,9.55948421,1916.7,1916.5,5.21774]
[1742264896994,8.5297309,1916.7,1916.6,5.21757]
[1742264897196,3.0,1916.7,1916.6,5.21757]
[1742264897440,0.01,1916.9,1916.8,5.21702]
[1742264897820,0.01,1916.9,1916.8,6.02292]
[1742264898336,0.01,1916.9,1916.8,5.21702]
[1742264899336,0.01,1916.9,1916.8,6.03622]
[1742264899934,0.01,1916.9,1916.7,10.22514]
[1742264900112,0.01,1916.9,1916.7,10.22513]
[1742264900437,0.01,1916.9,1916.8,5.21702]
[1742264901324,0.01,1916.9,1916.8,6.03622]
[1742264902509,0.01,1916.9,1916.8,6.58622]
[1742264903431,0.01,1916.9,1916.8,7.06787505]
[1742264904541,0.01,1916.9,1916.8,6.51787505]
[1742264904846,0.01,1916.9,1916.8,7.34574073]
[1742264905443,0.01,1916.9,1916.8,6.86408568]
[1742264908919,0.01,1916.9,1916.8,7.46624431]
[1742264909248,0.01,1916.9,1916.8,7.41408568]
[1742264909750,1e-05,1916.9,1916.8,7.41408568]
[1742264910051,1e-05,1916.9,1916.8,10.41408568]
[1742264911049,1e-05,1916.9,1916.8,15.04584958]
[1742264911618,1e-05,1916.9,1916.8,31.88577267]
[1742264911919,1e-05,1916.9,1916.8,32.36571742]
[1742264912118,0.8245,1918.3,1918.0,5.21362]
[1742264912352,0.8245,1918.3,1918.1,5.21339]
[1742264912818,3.0,1918.4,1918.2,5.21322]
[1742264913215,3.0,1918.4,1918.0,5.2135]
[1742264913216,4.6317639,1918.3,1918.0,5.2135]
[1742264913432,9.8448139,1918.3,1917.9,10.42788]
[1742264913629,4.6317639,1918.1,1917.8,10.42841]
[1742264913929,4.6317639,1918.1,1917.8,5.21414]
[1742264914110,6.03781,1918.2,1917.9,5.21393]
[1742264914111,3.8245,1918.2,1917.9,5.21393]
[1742264914311,3.8245,1918.2,1917.8,5.21427]
[1742264914513,9.03782,1918.2,1917.8,5.21427]
[1742264914911,14.25123,1918.2,1917.8,5.21427]
[1742264915140,16.13952939,1918.2,1917.8,5.21427]
[1742264915340,5.21366,1918.1,1917.7,16.25244]
[1742264916052,9.8454239,1918.1,1917.7,10.22939]
[1742264916252,10.6774239,1917.9,1917.5,5.21505]
[1742264916458,10.42895,1917.8,1917.4,5.21536]
[1742264916759,5.4632639,1917.9,1917.4,5.21521]
[1742264916940,5.21458,1917.7,1917.4,5.21521]
[1742264917256,5.21448,1917.8,1917.4,5.21521]
[1742264917459,5.21485,1917.6,1917.3,10.23165]
[1742264917618,0.7964,1917.5,1917.3,10.23165]
[1742264917819,0.7964,1917.5,1917.3,5.016]
[1742264918565,6.01153,1917.5,1917.2,5.21591]
[1742264918855,6.01153,1917.5,1917.1,5.017]
[1742264918856,5.21555,1917.4,1917.1,5.017]
[1742264919061,10.43113,1917.4,1917.0,5.21633]
[1742264919253,4.6317639,1917.3,1917.0,5.21633]
[1742264919926,4.6317639,1917.3,1917.0,10.43265]
[1742264920253,5.21555,1917.4,1917.0,5.21632]
[1742264920555,5.21555,1917.4,1917.0,5.21631]
[1742264920757,12.07711269,1917.4,1917.0,5.21631]
[1742264921721,5.21573,1917.3,1916.8,6.24327912]
[1742264921941,9.8474939,1917.3,1917.0,5.21639]
[1742264922460,5.21543,1917.4,1917.0,5.2163]
[1742264922659,16.4597869,1917.5,1917.1,5.21607]
[1742264922966,10.43097,1917.4,1917.0,5.2163]
[1742264923150,5.21567,1917.3,1917.0,5.2163]
[1742264923930,5.98502,1917.2,1916.8,10.22998]
[1742264924141,11.20114,1917.2,1916.8,10.22998]
[1742264924359,5.2166,1917.0,1916.7,5.21729]
[1742264924950,5.2166,1917.0,1916.6,5.21752]
[1742264924951,5.21678,1916.9,1916.6,5.21752]
[1742264925264,5.98604,1916.8,1916.4,5.21809]
[1742264925558,5.98604,1916.8,1916.5,5.21781]
[1742264925763,0.769,1916.8,1916.5,10.4355]
[1742264926568,0.769,1916.8,1916.6,5.2175]
[1742264927364,0.769,1916.8,1916.5,5.21768]
[1742264927569,5.21812,1916.4,1916.0,5.21899]
[1742264927751,0.7528,1916.5,1916.2,5.21849]
[1742264927951,9.8494339,1916.6,1916.0,5.2192]
[1742264927952,4.6317639,1916.6,1916.0,5.2192]
[1742264928270,9.8494439,1916.6,1916.3,5.21827]
[1742264928435,9.8494439,1916.6,1916.2,5.21859]
[1742264928835,4.6317639,1916.6,1916.3,5.21822]
[1742264929036,0.7528,1916.7,1916.5,5.21783]
[1742264929267,0.7528,1916.7,1916.4,5.21805]
[1742264929467,0.7528,1916.7,1916.5,5.21773]
[1742264929860,0.7528,1916.7,1916.3,0.7527]
[1742264930053,4.6317639,1916.6,1916.2,5.21864]
[1742264930371,4.6317639,1916.6,1916.3,5.21829]
[1742264930574,9.8493739,1916.6,1916.2,5.21857]
[1742264930780,5.21786,1916.5,1916.1,5.21889]
[1742264930945,0.79,1916.4,1916.1,5.21889]
[1742264931146,6.00813,1916.4,1916.1,5.21889]
[1742264931877,0.79,1916.4,1916.1,5.21875]
[1742264932046,0.79,1916.4,1916.3,5.21838]
[1742264932248,6.00749,1916.7,1916.3,5.21829]
[1742264932442,6.00749,1916.7,1916.4,10.4361]
[1742264932443,0.79,1916.7,1916.4,10.4361]
[1742264932770,0.79,1916.7,1916.3,5.21836]
[1742264933181,6.00747,1916.7,1916.3,5.21836]
[1742264933562,11.22497,1916.7,1916.3,5.21836]
[1742264934362,5.21757,1916.6,1916.2,6.01544]
[1742264934572,15.0670839,1916.6,1916.2,5.21847]
[1742264935141,9.8493339,1916.6,1916.2,10.43696]
[1742264935349,16.65280029,1916.6,1916.2,5.21847]
[1742264935766,11.43500029,1916.6,1916.2,5.21847]
[1742264936480,11.43500029,1916.6,1916.3,5.21838]
[1742264936645,11.43500029,1916.6,1916.2,5.2186]
[1742264936977,9.8493339,1916.6,1916.2,10.43717]
[1742264937273,9.8493339,1916.6,1916.2,5.21857]
[1742264937578,15.0670939,1916.6,1916.2,5.21857]
[1742264938076,0.83,1916.4,1916.1,5.21877]
[1742264938379,6.04811,1916.4,1916.1,5.21877]
[1742264938543,10.6798739,1916.4,1916.0,10.23411]
[1742264938743,5.21842,1916.3,1916.0,10.23411]
[1742264938974,5.21842,1916.3,1915.9,5.2193]
[1742264939879,5.21842,1916.3,1915.9,10.43867]
[1742264940289,5.21842,1916.3,1916.0,5.21917]
[1742264940785,10.6798939,1916.4,1916.0,5.21901]
[1742264940981,5.2184,1916.3,1916.0,5.21901]
[1742264941379,5.2184,1916.3,1915.9,5.21947]
[1742264941582,10.6633639,1916.2,1915.8,5.21972]
[1742264941786,5.21902,1916.1,1915.7,10.23398]
[1742264941961,5.21902,1916.1,1915.7,15.45387]
[1742264942160,0.8128,1915.9,1915.6,10.44042]
[1742264942563,0.8128,1915.9,1915.6,5.22015]
[1742264942883,0.8128,1915.9,1915.7,5.21999]
[1742264943889,0.8128,1915.9,1915.7,5.21987]
[1742264944374,5.41442539,1916.1,1915.9,5.21945]
[1742264944574,5.41442539,1916.1,1915.8,5.21975]
[1742264944762,3.8262,1916.1,1915.8,5.21975]
[1742264944970,9.04514,1916.1,1915.8,5.21975]
[1742264945595,14.26422,1916.1,1915.8,5.21975]
[1742264945959,14.26422,1916.1,1915.7,5.22]
[1742264946481,5.21921,1916.0,1915.7,5.22]
[1742264946979,5.21921,1916.0,1915.7,10.43989]
[1742264947471,5.21921,1916.0,1915.7,10.43981]
[1742264947788,5.21921,1916.0,1915.7,5.21989]
[1742264947995,10.43856,1916.0,1915.7,5.21989]
[1742264948299,0.8046,1915.8,1915.6,5.22024]
[1742264948475,0.8046,1915.8,1915.6,5.22007]
[1742264948797,0.8046,1915.8,1915.7,5.22002]
[1742264952792,0.8046,1915.8,1915.6,5.22007]
[1742264954163,0.8046,1915.8,1915.6,10.44022]
[1742264954495,0.8046,1915.8,1915.7,5.22002]
[1742264957099,5.4440639,1916.0,1915.7,5.22002]
[1742264957617,0.8123,1916.4,1916.3,5.21838]
[1742264957908,0.8123,1916.5,1916.3,5.21838]
[1742264958069,3.8123,1916.5,1916.3,5.21838]
[1742264958411,3.8123,1916.5,1916.3,5.21829]
[1742264958574,0.8123,1916.5,1916.3,5.21829]
[1742264958983,0.8123,1916.5,1916.3,10.43659]
[1742264959193,0.8123,1916.5,1916.3,5.21829]
[1742264959718,10.6619839,1916.5,1916.2,5.21854]
[1742264959867,19.27251929,1916.5,1916.1,5.21882]
[1742264960067,14.05443929,1916.5,1916.2,5.21865]
[1742264960284,10.6619839,1916.5,1916.2,5.21865]
[1742264960795,5.4440639,1916.5,1916.2,10.43717]
[1742264960970,5.4440639,1916.5,1916.2,5.21852]
[1742264961169,10.6619039,1916.5,1916.2,5.21852]
[1742264961871,15.8798939,1916.5,1916.2,5.21852]
[1742264962083,15.8798939,1916.5,1916.1,5.21888]
[1742264962612,10.6619039,1916.5,1916.2,5.21862]
[1742264962783,5.4440639,1916.5,1916.2,5.21851]
[1742264962988,5.4440639,1916.5,1916.3,5.21825]
[1742264963825,5.4440639,1916.5,1916.2,5.21851]
[1742264964529,10.6619039,1916.5,1916.2,5.21851]
[1742264965102,5.4440639,1916.5,1916.2,10.43709]
[1742264965406,5.4440639,1916.5,1916.2,5.21851]
[1742264967391,5.4440639,1916.5,1916.2,10.43702]
[1742264968739,5.4440639,1916.5,1916.2,5.21851]
[1742264968931,5.4440639,1916.5,1916.2,10.43703]
[1742264969111,5.4440639,1916.5,1916.2,5.21846]
[1742264969314,5.4440639,1916.5,1916.3,5.21828]
[1742264971768,5.4440639,1916.5,1916.2,5.21855]
[1742264971939,5.4440639,1916.5,1916.2,10.43698]
[1742264972129,5.4440639,1916.5,1916.3,5.21835]
[1742264975553,5.4440639,1916.5,1916.3,5.21828]
[1742264976458,5.4440639,1916.5,1916.3,5.21821]
[1742264977957,5.4440639,1916.5,1916.2,5.21859]
[1742264978255,10.6619339,1916.5,1916.2,5.21859]
[1742264978710,5.4440639,1916.5,1916.2,10.43714]
[1742264978909,5.4440639,1916.5,1916.2,5.21855]
[1742264979347,5.4440639,1916.5,1916.2,5.21851]
[1742264979549,5.4440639,1916.5,1916.2,10.43704]
[1742264979848,5.4440639,1916.5,1916.4,5.21811]
[1742264980356,5.4440639,1916.5,1916.3,5.21815]
[1742264980558,5.4440639,1916.5,1916.3,10.43642]
[1742264980752,3.0,1916.6,1916.4,5.21811]
[1742264981058,7.6317639,1916.6,1916.4,5.21811]
[1742264982230,7.6317639,1916.6,1916.5,5.21784]
[1742264982426,3.0,1916.6,1916.5,5.21784]
[1742264983763,3.0,1916.6,1916.4,5.218]
[1742264983973,3.0,1916.6,1916.4,5.21791]
[1742264984965,3.0,1916.6,1916.5,5.21784]
[1742264987563,3.0,1916.6,1916.4,5.21791]